bitfinex/quotes_SOLUSD_20260109
["timestamp","ask_amount","ask_price","bid_price","bid_amount"]
[1767998319221,7.64905254,135.95,135.92,0.64605887]
[1767998321507,7.64905254,135.95,135.92,0.58605887]
[1767998327929,7.64905254,135.95,135.92,0.52605887]
[1767998330518,0.70769964,135.94,135.91,0.2]
[1767998330834,0.70769964,135.95,135.92,0.65369021]
[1767998332732,8.06364578,135.95,135.92,0.65369021]
[1767998332913,0.70769964,135.97,135.92,0.65369021]
[1767998333120,8.06248715,135.97,135.92,0.65369021]
[1767998334318,8.06248715,135.97,135.92,0.59369021]
[1767998340135,8.06248715,135.97,135.93,0.72297007]
[1767998340431,8.07721348,135.98,135.93,0.66297007]
[1767998341428,7.35416831,135.98,135.93,7.35659873]
[1767998342314,0.72071048,135.97,135.94,0.72297007]
[1767998342511,0.72071048,135.97,135.94,0.66297007]
[1767998343339,7.63805447,135.99,135.94,7.3560659]
[1767998343340,0.69887798,135.99,135.94,7.3560659]
[1767998343524,0.69887798,135.99,135.94,25.74653228]
[1767998344435,0.69887798,136.0,135.95,0.67795466]
[1767998344738,0.69887798,136.0,135.95,0.61795466]
[1767998344913,0.69887798,136.0,135.95,7.35521112]
[1767998346236,0.69887798,136.0,135.94,18.39046638]
[1767998346556,0.69887798,136.0,135.95,0.67795466]
[1767998347337,0.69887798,136.0,135.96,7.35510444]
[1767998347640,0.69887798,136.0,135.97,0.67795466]
[1767998348019,0.69887798,136.01,135.97,0.67795466]
[1767998349047,0.69887798,136.01,135.98,0.67795466]
[1767998349429,8.05100303,136.02,135.98,0.61795466]
[1767998349840,7.35212505,136.02,135.98,0.61795466]
[1767998350031,8.04995942,136.04,135.98,0.61795466]
[1767998350931,0.69170196,136.03,135.99,7.35348187]
[1767998351442,0.69170196,136.03,135.99,8.03143653]
[1767998351831,0.69170196,136.03,136.0,0.67795466]
[1767998352025,0.69170196,136.03,135.99,7.35348187]
[1767998352425,0.69170196,136.03,135.97,25.74097226]
[1767998354023,0.69170196,136.03,135.98,0.67795466]
[1767998355446,0.69170196,136.03,136.0,0.67795466]
[1767998356247,0.69887798,136.04,136.0,0.67795466]
[1767998356546,0.69887798,136.05,136.01,0.67795466]
[1767998360853,0.69887798,136.05,136.02,0.67795466]
[1767998361052,0.69887798,136.05,136.02,0.61795471]
[1767998361247,0.69887798,136.05,136.02,0.55795477]
[1767998361633,0.69887798,136.05,136.02,0.49795486]
[1767998365852,14.13887798,136.06,136.02,0.49795486]
[1767998366252,0.69887798,136.06,136.03,0.67795466]
[1767998366448,0.69887798,136.06,136.03,0.55795467]
[1767998367845,0.69887798,136.06,136.03,0.49795467]
[1767998368359,0.69887798,136.06,136.03,0.43795467]
[1767998371570,0.69887798,136.06,136.03,0.37795467]
[1767998374871,0.69887798,136.06,136.03,7.72915672]
[1767998375769,0.69887798,136.06,136.03,7.66915672]
[1767998376371,0.69887798,136.06,136.03,0.31795467]
[1767998381958,0.69887798,136.06,136.03,0.25795467]
[1767998400198,0.69887798,136.06,136.02,7.35163506]
[1767998400384,0.68463219,136.02,135.97,0.6716612]
[1767998400591,0.68463219,136.0,135.97,0.6716612]
[1767998400774,0.68463219,135.99,135.95,7.35531997]
[1767998401101,0.68463219,135.99,135.94,13.42]
[1767998401296,0.68463219,135.99,135.94,20.77612009]
[1767998401503,5.61202171,135.98,135.94,20.77612009]
[1767998401675,0.68463219,135.98,135.94,20.77612009]
[1767998402779,0.68463219,135.98,135.95,0.36485939]
[1767998404176,0.68446266,135.99,135.95,0.36485939]
[1767998404381,0.68446266,135.99,135.96,0.36485939]
[1767998405881,0.68446266,136.0,135.96,0.36485939]
[1767998411806,0.68446266,136.02,135.97,0.36485939]
[1767998412694,0.68446266,136.02,135.98,0.36485939]
[1767998421915,0.68446266,136.02,135.99,0.36485939]
[1767998422918,0.68446266,136.02,135.98,7.35371978]
[1767998423834,0.68446266,136.03,135.99,7.71832643]
[1767998425017,0.68446266,136.03,136.0,0.36485939]
[1767998425225,0.68446266,136.03,136.0,0.30834402]
[1767998426414,7.34978822,136.06,136.0,0.30834402]
[1767998426415,0.68446266,136.05,136.0,0.30834402]
[1767998427525,0.68446266,136.05,136.01,0.30834402]
[1767998427731,0.68446266,136.04,136.0,7.35257602]
[1767998429623,0.68446266,136.04,136.0,7.60092701]
[1767998429921,7.34969866,136.06,136.01,0.24835099]
[1767998430119,0.68446266,136.05,136.01,0.24835099]
[1767998431320,0.68446266,136.04,136.01,0.24835099]
[1767998445434,0.68446266,136.04,136.0,0.24835099]
[1767998449435,0.68446266,136.04,136.0,7.60104227]
[1767998450836,0.68446266,136.04,136.01,0.24835099]
[1767998458520,0.68446266,136.04,136.01,0.02402897]
[1767998462622,0.68373605,136.03,135.99,0.02402897]
[1767998462841,0.68373605,136.03,135.98,20.79785921]
[1767998464138,0.69491021,136.01,135.98,20.79785921]
[1767998464336,5.65434631,136.0,135.98,20.77383024]
[1767998464548,0.69491021,136.0,135.98,20.77383024]
[1767998464750,0.69491021,135.98,135.96,7.35464698]
[1767998464936,4.96073969,135.97,135.96,7.35464698]
[1767998465252,0.69491021,135.97,135.95,7.35553842]
[1767998466235,0.69491021,135.97,135.94,25.77025455]
[1767998466431,0.69491021,135.97,135.94,7.35618655]
[1767998468135,0.69491021,135.97,135.94,7.38021552]
[1767998470438,0.69491021,135.97,135.94,7.35618655]
[1767998473948,0.66491022,135.97,135.94,7.35618655]
[1767998475369,0.66491022,135.97,135.91,0.2]
[1767998475573,5.24808414,135.95,135.87,0.2]
[1767998475759,24.60651083,135.94,135.87,0.2]
[1767998475959,0.69491021,135.93,135.87,0.2]
[1767998476469,18.403761,135.94,135.88,0.68153064]
[1767998476470,0.69491021,135.91,135.88,0.68153064]
[1767998476766,0.69491021,135.97,135.9,0.68153064]
[1767998477068,0.69491021,136.01,135.96,0.68153064]
[1767998477769,1.41991021,136.0,135.96,0.68153064]
[1767998482176,8.77292098,136.0,135.96,0.68153064]
[1767998484455,0.69491021,136.05,135.97,0.68153064]
[1767998485072,0.69491021,136.04,135.97,0.68153064]
[1767998486166,0.69491021,136.04,135.99,0.65402896]
[1767998491579,0.69491021,136.04,135.99,8.00714962]
[1767998494185,0.69491021,136.04,136.0,0.65402896]
[1767998494482,0.69491021,136.04,136.0,0.59402896]
[1767998497089,0.69491021,136.04,136.0,7.94687548]
[1767998500066,0.69491021,136.04,136.0,7.88687548]
[1767998511401,0.69491021,136.04,136.01,0.53402896]
[1767998515401,0.69491021,136.04,136.0,0.53402896]
[1767998516397,0.69491021,136.04,136.0,7.88675735]
[1767998518402,0.69491021,136.04,136.01,0.53402896]
[1767998520513,0.69491021,136.04,136.0,7.35294117]
[1767998520704,0.69491021,136.04,136.0,7.29294117]
[1767998521508,0.69491021,136.04,136.0,7.82697013]
[1767998545617,0.6788825,136.03,135.97,13.42]
[1767998545823,0.6788825,136.03,135.97,0.53402896]
[1767998546916,0.6788825,136.03,135.97,7.88833687]
[1767998547511,0.6788825,136.02,135.96,7.8891334]
[1767998548708,0.6788825,136.01,135.96,7.8891334]
[1767998549320,0.6788825,136.0,135.95,0.53402896]
[1767998551326,0.6788825,135.99,135.95,0.53402896]
[1767998559245,0.68480301,135.98,135.95,0.53402896]
[1767998570451,0.68480301,135.98,135.93,0.53402896]
[1767998572531,0.68480301,135.98,135.94,7.35618655]
[1767998575447,0.68480301,135.98,135.94,7.89021551]
[1767998576549,0.68480301,135.98,135.95,0.53402896]
[1767998593271,0.68480301,135.98,135.95,0.05887177]
[1767998599165,0.68480301,135.98,135.93,18.39128064]
[1767998599986,0.68480301,135.98,135.92,7.41614075]
[1767998601083,0.68480301,135.98,135.93,0.05887177]
[1767998611890,7.99424872,135.98,135.94,0.05887177]
[1767998617696,0.66784122,135.97,135.94,0.05887177]
[1767998619176,0.66784122,135.98,135.94,0.05887177]
[1767998627691,0.66784122,135.99,135.94,0.05887177]
[1767998629076,0.66784122,135.99,135.95,0.10359231]
[1767998630499,0.66784122,135.99,135.95,7.45901582]
[1767998630696,0.66784122,135.99,135.94,0.10359231]
[1767998630697,0.65590463,135.98,135.94,0.10359231]
[1767998633299,8.01003651,135.98,135.94,0.10359231]
[1767998633594,0.65590463,135.97,135.94,0.10359231]
[1767998635090,0.65590463,135.96,135.93,0.10359231]
[1767998636094,0.65590463,135.96,135.92,0.10359231]
[1767998638207,0.65590463,135.95,135.92,0.10359231]
[1767998638401,0.65590463,135.95,135.89,103.1]
[1767998638402,0.65590463,135.95,135.89,0.10359231]
[1767998638603,0.65590463,135.95,135.87,0.2]
[1767998638604,0.65590463,135.94,135.87,0.2]
[1767998638980,0.65590463,135.91,135.87,0.2]
[1767998639901,0.65590463,135.9,135.87,0.2]
[1767998640701,0.65590463,135.89,135.87,0.2]
[1767998641390,0.65590463,135.89,135.84,0.50359231]
[1767998641590,0.65590463,135.89,135.84,0.2]
[1767998642092,0.65590463,135.88,135.84,0.2]
[1767998642587,0.62590464,135.88,135.84,0.2]
[1767998643304,7.35954748,135.88,135.84,0.2]
[1767998644607,0.70606712,135.87,135.84,0.2]
[1767998650417,0.70606712,135.87,135.84,0.5335923]
[1767998651723,0.70606712,135.87,135.84,0.2]
[1767998652418,0.70606712,135.89,135.85,0.3335923]
[1767998653315,0.70606712,135.89,135.84,7.56142443]
[1767998653316,0.70606712,135.89,135.84,7.89501673]
[1767998658528,0.70606712,135.88,135.84,7.89501673]
[1767998663728,0.70606712,135.88,135.84,7.56142443]
[1767998664729,0.67606713,135.88,135.84,7.56142443]
[1767998666124,0.67606713,135.88,135.84,7.92501672]
[1767998666324,0.67606713,135.88,135.85,0.36359229]
[1767998666906,0.67606713,135.88,135.84,7.92501672]
[1767998668629,0.64606714,135.88,135.84,7.92501672]
[1767998669227,0.64606714,135.88,135.85,0.39359228]
[1767998675229,0.61606715,135.88,135.85,0.39359228]
[1767998676141,0.58606716,135.88,135.85,0.39359228]
[1767998686453,0.71348254,135.86,135.84,0.2]
[1767998686655,0.71348254,135.86,135.84,0.65359226]
[1767998686855,8.07345898,135.87,135.84,0.65359226]
[1767998687038,0.71348254,135.87,135.84,0.65359226]
[1767998692352,0.71348254,135.87,135.84,0.2]
[1767998697568,0.71348254,135.87,135.84,0.65359226]
[1767998701147,8.07373715,135.87,135.84,0.65359226]
[1767998702269,0.71348254,135.87,135.84,0.65359226]
[1767998702467,0.71348254,135.87,135.84,0.2]
[1767998703358,0.71348254,135.87,135.84,0.65359226]
[1767998704653,0.71348254,135.87,135.85,0.45359226]
[1767998705570,0.71348254,135.87,135.84,0.65359226]
[1767998705772,0.68348255,135.87,135.84,0.65359226]
[1767998708171,0.65348256,135.87,135.84,0.65359226]
[1767998739790,0.65348256,135.87,135.84,8.01516929]
[1767998740092,0.65348256,135.87,135.84,7.56157703]
[1767998741384,0.65348256,135.87,135.84,8.07516927]
[1767998746800,0.65348256,135.87,135.84,7.56157703]
[1767998749604,0.65348256,135.87,135.84,8.07516927]
[1767998750572,0.65501859,135.88,135.85,0.51359224]
[1767998750776,0.65501859,135.88,135.84,7.56157703]
[1767998751797,0.65501859,135.88,135.84,8.07516927]
[1767998764211,0.65501859,135.88,135.85,7.87461524]
[1767998765007,0.65501859,135.88,135.85,0.51359224]
[1767998773019,0.65501859,135.88,135.84,8.0749788]
[1767998787738,0.65501859,135.88,135.84,7.56138656]
[1767998787942,0.67103635,135.87,135.84,0.2]
[1767998788938,0.67103635,135.87,135.84,0.71359224]
[1767998789350,0.67103635,135.87,135.84,0.2]
[1767998791452,0.67103635,135.87,135.84,0.71359224]
[1767998792451,0.46856572,135.91,135.86,0.51359224]
[1767998793632,0.46856572,135.91,135.87,0.51359224]
[1767998795732,0.46856572,135.91,135.87,7.87342969]
[1767998797848,0.46856572,135.91,135.87,0.51359224]
[1767998802959,0.46856572,135.91,135.87,7.87325498]
[1767998822569,0.46856572,135.91,135.87,7.35966274]
[1767998822773,0.46856572,135.91,135.88,0.51359224]
[1767998824053,0.68796089,135.94,135.89,0.51359224]
[1767998824764,0.68796089,135.94,135.9,7.87194396]
[1767998825068,0.68796089,135.94,135.91,0.51359224]
[1767998825261,0.68796089,135.94,135.91,0.45359224]
[1767998825966,0.68796089,135.94,135.91,7.81124253]
[1767998831379,0.68796089,135.94,135.9,7.81194396]
[1767998850094,0.68796089,135.94,135.91,0.45359224]
[1767998850279,0.68796089,135.94,135.91,7.81138195]
[1767998851203,0.68796089,135.94,135.91,21.25138195]
[1767998852199,0.68796089,135.95,135.92,0.45359224]
[1767998852998,0.66735813,135.99,135.93,0.45359224]
[1767998853226,8.02093561,135.99,135.95,0.45359224]
[1767998853500,0.14216157,135.98,135.95,0.39359224]
[1767998854404,0.95168127,135.98,135.95,0.39359224]
[1767998854796,8.30588835,135.98,135.95,0.39359224]
[1767998859105,0.66735813,135.99,135.95,0.39359224]
[1767998860804,8.02087843,135.99,135.95,0.39359224]
[1767998864691,0.66735813,135.98,135.95,0.39359224]
[1767998865932,8.02087843,135.99,135.95,0.39359224]
[1767998866207,0.66735813,135.98,135.95,0.39359224]
[1767998866422,7.3535203,135.99,135.95,0.39359224]
[1767998866423,8.02087843,135.99,135.95,0.39359224]
[1767998868403,0.66735813,135.99,135.95,7.74896981]
[1767998868708,0.66735813,135.99,135.96,0.39359224]
[1767998875017,0.66735813,135.99,135.95,7.74896981]
[1767998875205,0.66735813,135.99,135.96,7.35501208]
[1767998880708,0.81862907,136.02,135.99,0.39359224]
[1767998881024,0.1,136.02,136.0,13.83359224]
[1767998881324,1e-08,136.02,136.01,0.39359224]
[1767998881718,1e-08,136.02,136.01,7.74599279]
[1767998882923,0.1,136.05,136.02,0.39359224]
[1767998883125,0.71862907,136.07,136.04,0.39359224]
[1767998883420,0.71862907,136.07,136.01,7.35240055]
[1767998883629,0.71862907,136.07,136.02,13.44]
[1767998884829,0.70330205,136.06,136.02,13.44]
[1767998887515,0.70330205,136.05,136.02,13.73359224]
[1767998887818,0.70330205,136.05,136.02,13.44]
[1767998889532,0.70330205,136.05,136.0,2.94171722]
[1767998889533,0.70330205,136.04,136.0,21.06636692]
[1767998889731,0.70330205,136.04,136.0,13.71359224]
[1767998890828,0.70330205,136.04,136.0,20.77293853]
[1767998892920,0.70330205,136.03,136.0,13.42]
[1767998893311,0.70330205,136.03,135.99,0.29359224]
[1767998893516,0.70330205,136.02,135.98,13.71359224]
[1767998898532,0.70330205,136.02,135.99,0.29359224]
[1767998899626,0.70330205,136.01,135.97,21.06785294]
[1767998910243,0.67330206,136.01,135.97,21.06785294]
[1767998914856,0.66018187,136.0,135.97,13.42]
[1767998918253,0.66018187,136.0,135.97,13.74359223]
[1767998922853,0.66018187,135.99,135.97,13.42]
[1767998925868,7.3530129,136.0,135.97,13.74359223]
[1767998926055,0.66018187,136.0,135.97,13.74359223]
[1767998926439,0.66018187,136.0,135.97,13.42]
[1767998929569,0.65320232,136.0,135.97,13.74359223]
[1767998930469,0.65320232,136.0,135.97,13.42]
[1767998933465,0.65320232,136.0,135.97,13.74359223]
[1767998934147,0.65320232,136.0,135.97,13.42]
[1767998934349,0.65320232,136.0,135.97,13.74359223]
[1767998935068,0.65320232,136.0,135.97,13.42]
[1767998935244,0.65320232,136.0,135.97,13.74359223]
[1767998935866,0.65320232,136.0,135.97,13.42]
[1767998940046,0.65320232,136.0,135.97,13.74359223]
[1767998941977,0.65320232,136.0,135.98,0.32359223]
[1767998944678,0.65320232,136.0,135.97,13.42]
[1767998944852,0.65320232,136.0,135.97,13.74359223]
[1767998947980,0.65320232,136.0,135.97,21.09802256]
[1767998955692,0.68405919,136.02,135.98,0.32359223]
[1767998957985,0.68405919,136.03,135.99,7.35348187]
[1767998958181,0.68405919,136.03,136.0,0.32359223]
[1767998958771,0.68405919,136.03,135.99,7.6770741]
[1767998962292,0.68405919,136.03,136.0,0.32359223]
[1767998963991,0.68405919,136.03,135.98,7.67761488]
[1767998966187,0.68405919,136.03,135.99,0.32359223]
[1767998976297,0.68405919,136.03,135.99,7.67701148]
[1767998977805,0.68405919,136.03,136.0,0.32359223]
[1767998981899,0.68405919,136.03,136.0,7.67634847]
[1767998983812,0.70930693,136.04,136.01,7.67574464]
[1767998985612,0.70930693,136.05,136.02,0.32359223]
[1767998986011,0.70930693,136.05,136.02,7.67542778]
[1767998993417,0.70483153,136.06,136.03,0.32359223]
[1767998997424,7.63372647,136.07,136.03,0.32359223]
[1767998997425,8.15371229,136.08,136.04,0.32359223]
[1767998997726,8.15371229,136.08,136.04,0.29062523]
[1767998997927,0.70483153,136.07,136.04,0.29062523]
[1767998998323,8.15371229,136.08,136.04,0.29062523]
[1767998998926,0.70483153,136.07,136.03,20.77101031]
[1767998999526,0.70483153,136.07,136.04,7.64137428]
[1767999000025,0.1,136.08,136.05,0.29062523]
[1767999000026,0.80483153,136.08,136.05,0.29062523]
[1767999001028,0.80483153,136.08,136.04,7.64137428]
[1767999006128,0.80483153,136.08,136.04,7.35074905]
[1767999006335,0.1,136.08,136.05,7.64053018]
[1767999006629,0.91155031,136.1,136.07,0.19062523]
[1767999006824,0.67037001,136.09,136.05,7.34990495]
[1767999008929,0.67037001,136.09,136.06,0.13062523]
[1767999013312,0.91155031,136.1,136.07,0.13062523]
[1767999013633,0.67037001,136.09,136.06,7.34956639]
[1767999014412,0.67037001,136.09,136.06,20.76956639]
[1767999015037,0.67037001,136.09,136.06,20.90019162]
[1767999021636,0.91155031,136.1,136.07,0.13062523]
[1767999021830,0.67037001,136.09,136.06,20.90019162]
[1767999024135,0.91155031,136.1,136.07,0.13062523]
[1767999025743,0.67037001,136.09,136.06,20.90019162]
[1767999026340,0.91155031,136.1,136.07,0.13062523]
[1767999029244,0.91155031,136.1,136.07,7.47977584]
[1767999032051,0.91155031,136.1,136.07,0.13062523]
[1767999036551,0.91155031,136.1,136.07,7.4797495]
[1767999046048,0.66486812,136.09,136.07,7.34912427]
[1767999047761,0.90604842,136.1,136.07,7.4797495]
[1767999048566,0.66486812,136.09,136.04,8.01618414]
[1767999050138,0.691847,136.08,136.04,8.01618414]
[1767999052644,0.691847,136.06,136.01,7.35210864]
[1767999052851,0.691847,136.06,136.0,8.07311558]
[1767999055257,0.691847,136.04,136.0,8.07311558]
[1767999059773,0.691847,136.04,136.0,0.72040501]
[1767999062661,0.691847,136.03,136.0,0.72040501]
[1767999068370,0.691847,136.03,135.99,8.03438446]
[1767999069675,0.691847,136.03,136.0,0.68109141]
[1767999093008,0.6710516,136.04,136.01,0.68109141]
[1767999097503,0.6710516,136.04,136.02,0.66839542]
[1767999099210,0.6710516,136.06,136.02,0.66839542]
[1767999103910,8.02076102,136.06,136.02,0.66839542]
[1767999104116,0.6710516,136.05,136.02,0.66839542]
[1767999108019,0.6710516,136.05,136.02,0.60839542]
[1767999110621,8.03261374,136.06,136.03,0.67015008]
[1767999110926,0.68290432,136.05,136.02,13.42]
[1767999112718,0.68290432,136.05,136.02,14.09015008]
[1767999119325,8.03269609,136.06,136.03,0.67015008]
[1767999119525,0.68290432,136.06,136.03,0.61015008]
[1767999120327,0.68290432,136.06,136.03,0.49015008]
[1767999121112,0.68290432,136.09,136.04,8.08585709]
[1767999121427,0.68290432,136.09,136.05,13.42]
[1767999122121,0.68290432,136.09,136.04,8.08585709]
[1767999122328,8.27204202,136.1,136.06,0.55562523]
[1767999127635,8.27204202,136.1,136.06,7.90527109]
[1767999127636,0.92408462,136.1,136.06,7.90527109]
[1767999129123,0.92408462,136.1,136.07,0.55562523]
[1767999130137,0.67028886,136.09,136.07,0.55562523]
[1767999133935,0.91146916,136.1,136.07,7.90476264]
[1767999134947,0.2411803,136.1,136.08,0.55562523]
[1767999135540,0.91146916,136.1,136.07,7.34913741]
[1767999135747,0.91146916,136.1,136.07,7.90476264]
[1767999144949,0.2411803,136.1,136.08,0.55562523]
[1767999145753,0.2411803,136.1,136.08,13.97562523]
[1767999146756,0.67028886,136.09,136.08,20.76856891]
[1767999149958,0.2411803,136.1,136.08,20.76856891]
[1767999151971,0.2411803,136.1,136.09,0.70704994]
[1767999154157,0.1,136.11,136.09,8.05512841]
[1767999154361,0.1,136.11,136.1,0.711129]
[1767999158560,1e-08,136.11,136.1,8.05866757]
[1767999160251,0.1,136.13,136.11,0.711129]
[1767999160559,0.1,136.13,136.11,0.651129]
[1767999160758,0.1,136.13,136.11,14.071129]
[1767999161350,0.1,136.13,136.11,13.42]
[1767999162383,0.1,136.13,136.11,21.47787714]
[1767999162555,0.1,136.13,136.12,0.711129]
[1767999163265,0.1,136.13,136.11,20.76674814]
[1767999163462,0.1,136.13,136.11,21.47787714]
[1767999164859,0.1,136.14,136.12,0.711129]
[1767999166883,0.80152376,136.14,136.12,0.711129]
[1767999167181,0.80152376,136.14,136.11,21.47787714]
[1767999167687,0.80152376,136.14,136.12,0.711129]
[1767999169482,0.1,136.14,136.12,8.01148805]
[1767999170559,0.1,136.14,136.13,0.66509954]
[1767999171183,0.07,136.14,136.12,8.01148805]
[1767999173790,0.07,136.14,136.13,0.66509954]
[1767999173963,0.04000001,136.14,136.13,0.66509954]
[1767999176693,0.04000001,136.14,136.13,8.01101888]
[1767999180279,0.01000002,136.14,136.13,8.01101888]
[1767999184198,0.1,136.16,136.14,0.68678568]
[1767999184380,0.1,136.16,136.14,14.10678568]
[1767999185582,0.1,136.16,136.14,21.45168945]
[1767999189293,0.1,136.16,136.15,8.03162592]
[1767999190987,0.1,136.17,136.15,8.03162592]
[1767999192415,0.77122059,136.17,136.15,8.03162592]
[1767999192715,0.77122059,136.17,136.15,7.34484024]
[1767999196601,0.1,136.17,136.16,0.68678568]
[1767999196920,0.1,136.17,136.15,7.34484024]
[1767999198721,0.1,136.17,136.15,8.03162592]
[1767999199609,0.1,136.17,136.16,0.68678568]
[1767999200602,0.1,136.17,136.16,8.0310865]
[1767999206215,0.77122059,136.17,136.15,7.34466092]
[1767999207624,0.77122059,136.17,136.14,31.78291553]
[1767999208227,0.1,136.17,136.15,0.68678568]
[1767999208528,0.1,136.17,136.15,8.03162592]
[1767999208720,0.1,136.17,136.16,0.68678568]
[1767999212244,0.77122059,136.17,136.15,8.03162592]
[1767999213044,0.1,136.17,136.15,8.03162592]
[1767999214642,0.1,136.17,136.16,0.65897466]
[1767999217643,0.1,136.17,136.16,8.00327548]
[1767999217945,0.07,136.17,136.16,8.00327548]
[1767999218131,0.72703521,136.17,136.16,7.34430082]
[1767999218335,0.07,136.17,136.16,8.00327548]
[1767999219447,0.75703521,136.19,136.17,0.65897466]
[1767999219747,0.1,136.19,136.17,0.65897466]
[1767999219940,0.75703521,136.19,136.17,0.65897466]
[1767999220124,0.75703521,136.19,136.16,0.65897466]
[1767999222950,0.1,136.19,136.16,0.65897466]
[1767999223849,0.1,136.19,136.17,13.42]
[1767999225546,0.75703521,136.19,136.17,13.42]
[1767999225745,0.65703521,136.22,136.18,0.65897466]
[1767999226058,7.99824125,136.22,136.18,0.65897466]
[1767999226238,0.65703521,136.21,136.18,0.65897466]
[1767999226559,0.65703521,136.21,136.17,21.42251562]
[1767999226738,0.65703521,136.21,136.18,0.65897466]
[1767999233236,0.65703521,136.21,136.17,21.44441678]
[1767999233863,0.65703521,136.21,136.18,0.68087582]
[1767999235561,0.65703521,136.21,136.18,8.02368035]
[1767999240165,0.65703521,136.21,136.18,7.34280453]
[1767999240873,0.65703521,136.21,136.18,8.02368035]
[1767999242772,0.65703521,136.21,136.17,13.42]
[1767999242773,0.65703521,136.21,136.17,14.10087582]
[1767999243267,0.65703521,136.21,136.16,0.7025525]
[1767999243450,0.70680307,136.2,136.17,13.42]
[1767999243774,0.70680307,136.2,136.17,20.76368959]
[1767999245764,0.70680307,136.2,136.16,8.04672795]
[1767999246068,0.70680307,136.2,136.17,13.42]
[1767999254279,0.70680307,136.2,136.16,7.34417545]
[1767999254481,0.89112621,136.19,136.12,0.7025525]
[1767999254691,0.10402725,136.16,136.08,0.7025525]
[1767999254872,0.10895445,136.13,136.07,7.34169622]
[1767999255059,0.10895445,136.13,136.06,8.05195826]
[1767999255265,0.10895445,136.13,136.07,7.34903716]
[1767999255466,0.10895445,136.13,136.05,21.47255895]
[1767999255467,0.59187013,136.11,136.05,21.47255895]
[1767999255783,0.11378361,136.1,136.05,13.42]
[1767999256485,0.11378361,136.1,136.03,8.25344273]
[1767999256665,0.11378361,136.1,136.04,0.7025525]
[1767999257469,0.11378361,136.1,136.04,8.05323531]
[1767999258184,0.11378361,136.1,136.04,7.35068281]
[1767999263081,0.11378361,136.1,136.04,8.05323531]
[1767999266289,0.11378361,136.1,136.05,0.7025525]
[1767999269701,0.11378361,136.1,136.04,7.35068281]
[1767999269882,0.11378361,136.1,136.04,8.05323531]
[1767999272282,0.11378361,136.1,136.05,0.7025525]
[1767999273371,0.11378361,136.1,136.05,8.05268133]
[1767999273575,3.82937429,136.14,136.06,0.65698057]
[1767999273891,20.76459133,136.16,136.07,0.65698057]
[1767999274094,0.28432314,136.15,136.07,0.65698057]
[1767999274593,20.76459133,136.16,136.07,0.65698057]
[1767999274795,0.28432314,136.15,136.07,0.65698057]
[1767999275500,7.62938517,136.15,136.08,0.65698057]
[1767999292114,7.62938517,136.15,136.09,0.69116447]
[1767999304127,7.62938517,136.15,136.09,0.69116447]
[1767999316931,7.4872236,136.15,136.09,0.69116447]
[1767999317940,7.34506203,136.15,136.09,0.69116447]
[1767999328556,0.28432314,136.13,136.09,0.69116447]
[1767999332859,0.28432314,136.13,136.07,0.6807178]
[1767999334253,0.28432314,136.13,136.08,0.72287064]
[1767999344660,7.34484024,136.15,136.1,0.72287064]
[1767999346864,7.62981947,136.14,136.1,0.72287064]
[1767999397402,0.28432314,136.14,136.1,0.72287064]
[1767999418319,0.32505947,136.14,136.1,0.69591792]
[1767999419018,0.32505947,136.14,136.1,0.66881013]
[1767999421121,0.32505947,136.14,136.1,0.64124945]
[1767999421418,0.32505947,136.14,136.1,0.61423672]
[1767999425935,0.28432314,136.14,136.1,0.61423672]
[1767999426114,0.38332314,136.14,136.1,0.61423672]
[1767999426949,0.28432314,136.14,136.1,0.61423672]
[1767999427259,0.12218335,136.13,136.1,0.61423672]
[1767999431251,0.40674067,136.14,136.1,0.61423672]
[1767999435345,0.12241753,136.15,136.11,0.70882048]
[1767999435549,0.40674067,136.15,136.11,0.64882048]
[1767999436832,0.1584,136.14,136.11,0.64882048]
[1767999437231,7.81191976,136.15,136.11,0.64882048]
[1767999450556,7.62950223,136.15,136.11,0.64882048]
[1767999452566,8.35213423,136.15,136.1,7.34752912]
[1767999453064,1.00695514,136.15,136.05,14.15502388]
[1767999454663,1.00695514,136.15,136.06,0.65379482]
[1767999456269,0.20651994,136.14,136.06,0.65379482]
[1767999457673,0.99559633,136.15,136.06,0.65379482]
[1767999458980,0.21776517,136.14,136.06,0.65379482]
[1767999459968,0.21776517,136.14,136.07,0.65379482]
[1767999489392,0.70335909,136.13,136.07,0.65379482]
[1767999491798,0.70335909,136.13,136.05,0.70475006]
[1767999492797,0.70335909,136.13,136.05,14.12475006]
[1767999493105,0.70335909,136.13,136.06,0.70475006]
[1767999493394,0.22560013,136.12,136.06,0.70475006]
[1767999495894,0.22560013,136.12,136.08,0.70475006]
[1767999498102,0.22560013,136.12,136.09,8.05282853]
[1767999498586,0.70335909,136.14,136.1,0.70475006]
[1767999499103,0.70335909,136.14,136.1,8.05222528]
[1767999500010,0.70335909,136.14,136.1,7.34747522]
[1767999500404,0.70335909,136.14,136.09,8.05257611]
[1767999500708,0.22560013,136.13,136.09,8.05257611]